bitfinex/quotes_ETHUSD_20241223
["timestamp","ask_amount","ask_price","bid_price","bid_amount"]
[1734951444160,0.759,3350.4,3349.8,0.1619]
[1734951444356,0.759,3350.4,3349.9,8.98]
[1734951446249,0.8166,3350.7,3349.9,8.98]
[1734951446597,0.8166,3350.7,3349.9,11.96515]
[1734951447349,0.8166,3350.7,3350.0,5.98506]
[1734951447595,0.8166,3350.7,3350.1,1.93832598]
[1734951448988,0.8166,3350.7,3350.1,1.77642598]
[1734951449166,0.8166,3350.7,3349.9,9.59050994]
[1734951450194,0.8166,3350.7,3349.9,12.57562994]
[1734951450347,0.8166,3350.7,3350.0,8.98]
[1734951452020,2.98465,3350.5,3350.0,8.98]
[1734951452376,2.98446,3350.7,3349.9,0.61050994]
[1734951453311,3.0,3351.2,3349.9,0.61050994]
[1734951453466,2.98427,3350.9,3350.0,0.95905099]
[1734951454396,2.98421,3351.0,3350.0,0.95905099]
[1734951454728,2.98432,3350.9,3350.0,0.95905099]
[1734951454925,0.8106,3350.8,3350.0,0.95905099]
[1734951455127,0.8106,3350.8,3350.0,3.94411099]
[1734951455286,0.8106,3350.8,3350.1,1.67763673]
[1734951458814,2.98402,3351.2,3350.1,4.66260673]
[1734951458815,0.8321,3351.1,3350.1,4.66260673]
[1734951459128,2.98422,3351.0,3350.1,1.67763673]
[1734951460796,0.8321,3351.1,3350.1,1.67763673]
[1734951461859,0.8321,3351.1,3350.1,4.66261673]
[1734951462059,0.8321,3351.1,3350.2,0.94440777]
[1734951462229,0.8321,3351.1,3350.2,3.92928777]
[1734951462564,2.98356,3351.7,3350.5,2.98459]
[1734951463762,2.98356,3351.7,3350.4,9.1919]
[1734951463763,2.98373,3351.6,3350.4,9.1919]
[1734951463934,0.7514,3351.8,3350.5,1.53097877]
[1734951464131,0.7808,3351.4,3350.5,1.53097877]
[1734951464330,0.7808,3351.4,3350.4,9.1919]
[1734951464535,2.984,3351.3,3350.4,9.1919]
[1734951465138,0.7808,3351.4,3350.4,9.1919]
[1734951465468,0.7808,3351.4,3350.4,0.2119]
[1734951466352,3.76463,3351.4,3350.4,0.2119]
[1734951466560,0.7808,3351.4,3350.4,1.69178945]
[1734951466745,0.7808,3351.4,3350.4,4.67647945]
[1734951467257,0.7808,3351.4,3350.5,2.98458]
[1734951467448,0.7998,3351.6,3350.8,0.2119]
[1734951468563,3.78347,3351.6,3350.8,0.2119]
[1734951468873,2.98367,3351.6,3350.8,0.2119]
[1734951469087,2.98382,3351.4,3350.8,0.2119]
[1734951469435,2.98394,3351.3,3350.7,8.98]
[1734951471002,3.78504,3351.5,3350.7,8.98]
[1734951471503,0.8013,3351.5,3350.7,0.94432947]
[1734951471797,3.78508,3351.5,3350.7,0.94432947]
[1734951472450,2.98387,3351.4,3350.7,0.94432947]
[1734951472650,0.8013,3351.5,3350.5,3.2119]
[1734951473096,0.8013,3351.5,3350.5,3.7982597]
[1734951473595,2.98396,3351.3,3350.5,3.7982597]
[1734951474318,0.8013,3351.5,3350.5,3.7982597]
[1734951474456,2.98385,3351.4,3350.5,3.7982597]
[1734951474656,2.98385,3351.4,3350.6,0.39734799]
[1734951474895,0.8013,3351.5,3350.6,0.39734799]
[1734951475084,3.78505,3351.5,3350.6,0.39734799]
[1734951476093,0.81513372,3351.9,3350.7,0.2119]
[1734951476617,0.81513372,3351.9,3350.9,0.2119]
[1734951476756,0.81513372,3351.9,3351.0,0.319622]
[1734951476955,0.00293372,3351.9,3351.1,0.2119]
[1734951477460,2.98633372,3351.9,3351.1,0.2119]
[1734951478166,2.98348,3351.8,3351.1,0.2119]
[1734951478383,3.79579,3351.7,3350.8,0.2119]
[1734951478588,2.98359,3351.7,3350.8,2.08178747]
[1734951478773,0.00293372,3351.9,3351.4,0.2119]
[1734951479303,0.00293372,3351.9,3351.6,3.19551]
[1734951479856,0.00293372,3351.9,3351.7,2.98355]
[1734951480069,0.00293372,3351.9,3351.8,0.2119]
[1734951480268,0.00293372,3351.9,3351.8,0.53145]
[1734951480686,0.00293372,3351.9,3351.8,0.2119]
[1734951483527,0.00293372,3351.9,3351.8,9.1919]
[1734951483684,0.00293372,3351.9,3351.8,12.17537]
[1734951487982,0.8258,3354.0,3352.2,8.98]
[1734951488183,0.8258,3354.0,3352.1,3.0]
[1734951488184,2.9816,3353.9,3352.6,2.98273]
[1734951489028,2.9817,3353.8,3352.6,2.98273]
[1734951489252,2.9818,3353.7,3352.5,8.98]
[1734951489886,2.9818,3353.7,3352.5,11.96284]
[1734951490135,2.98148,3354.1,3352.5,8.98]
[1734951490136,2.98187,3353.6,3352.5,8.98]
[1734951490284,2.98187,3353.6,3352.5,10.28260335]
[1734951490923,2.9817,3353.8,3352.6,0.5659]
[1734951491129,2.9817,3353.8,3352.6,3.54865]
[1734951491282,3.7641,3353.8,3352.6,3.54865]
[1734951491800,0.7824,3353.8,3352.7,2.9826]
[1734951491983,0.7824,3353.8,3352.6,2.75458988]
[1734951491984,0.7824,3353.8,3352.9,2.98241]
[1734951492183,0.7824,3353.8,3352.9,0.5659]
[1734951494936,0.7824,3353.8,3352.7,0.5659]
[1734951495488,0.7987,3353.6,3352.6,5.18868988]
[1734951495688,0.7987,3353.6,3352.5,4.89870993]
[1734951495889,2.98197,3353.5,3352.6,4.66332998]
[1734951496130,2.98197,3353.5,3352.6,1.66332998]
[1734951496315,0.7987,3353.6,3352.6,1.66332998]
[1734951496492,0.7987,3353.6,3352.6,3.85201986]
[1734951496695,0.7987,3353.6,3352.7,0.5659]
[1734951496923,0.7987,3353.6,3352.7,2.56358664]
[1734951497916,2.98172,3353.8,3352.8,0.5659]
[1734951499205,3.77144,3354.0,3352.9,2.18868988]
[1734951499413,3.77144,3354.0,3352.8,0.5659]
[1734951500483,0.7899,3354.0,3352.8,3.0]
[1734951500737,0.7899,3354.0,3352.9,6.25594887]
[1734951501834,0.7899,3354.0,3352.9,3.27345887]
[1734951502407,0.7899,3354.0,3353.0,3.54822]
[1734951502792,0.7899,3354.0,3353.0,0.5659]
[1734951505899,0.7899,3354.0,3353.2,0.60725311]
[1734951506539,0.8209,3354.7,3353.3,0.5659]
[1734951507136,2.9812,3354.4,3353.3,0.5659]
[1734951507711,2.98129,3354.3,3353.3,0.5659]
[1734951508095,2.98137,3354.2,3353.3,0.5659]
[1734951508295,0.7922,3354.1,3353.3,0.5659]
[1734951508735,0.7422,3354.1,3353.3,0.5659]
[1734951510215,0.7422,3354.1,3353.3,0.98145231]
[1734951510928,0.7422,3354.1,3353.2,1.22315311]
[1734951513156,2.98109,3354.5,3353.3,0.6159]
[1734951513457,2.98123,3354.4,3353.3,0.6159]
[1734951513822,2.9813,3354.3,3353.3,0.6159]
[1734951514003,0.7979,3354.5,3353.3,0.6159]
[1734951514203,0.7979,3353.9,3352.8,0.6159]
[1734951514555,0.7979,3353.9,3352.9,1.47845899]
[1734951515159,0.7479,3353.9,3352.9,1.47845899]
[1734951516552,2.98156,3354.0,3353.0,0.6659]
[1734951517050,3.0,3354.6,3353.0,0.6659]
[1734951517345,2.98144,3354.1,3353.0,0.6659]
[1734951517548,2.98144,3354.1,3353.1,1.12100123]
[1734951517718,3.0,3354.7,3353.1,1.12100123]
[1734951517928,5.98092,3354.7,3353.3,0.6659]
[1734951518109,2.98118,3354.4,3353.3,0.6659]
[1734951519678,3.73665,3354.6,3353.3,3.64801]
[1734951519843,2.98107,3354.5,3353.4,0.69577011]
[1734951520668,0.7556,3354.6,3353.5,0.6659]
[1734951520891,0.7556,3354.6,3353.6,2.98185]
[1734951521166,0.8332,3354.9,3353.7,0.6659]
[1734951522066,3.81399,3354.9,3353.7,0.6659]
[1734951522273,2.981,3354.6,3353.7,1.319121]
[1734951522842,2.981,3354.6,3353.7,1.91245672]
[1734951523269,2.98082,3354.8,3353.7,1.91245672]
[1734951523942,0.8332,3354.9,3353.7,1.91245672]
[1734951524144,2.9809,3354.7,3353.7,1.91245672]
[1734951524456,2.9809,3354.7,3353.8,0.49124567]
[1734951525447,3.81394,3354.9,3353.8,0.49124567]
[1734951525643,3.81394,3354.9,3353.9,0.6659]
[1734951526970,0.8332,3354.9,3353.9,0.6659]
[1734951527839,3.81391,3354.9,3353.9,0.6659]
[1734951528146,3.81391,3354.9,3353.9,0.90627024]
[1734951529260,1.3515,3354.8,3353.6,0.6659]
[1734951529476,4.33234,3354.8,3353.6,0.6659]
[1734951529648,2.98121,3354.4,3353.6,0.6659]
[1734951529848,0.7589,3354.1,3353.6,0.6659]
[1734951530369,3.74033,3354.1,3353.6,0.6659]
[1734951530958,0.7589,3354.1,3353.6,0.6659]
[1734951532645,3.74033,3354.1,3353.6,0.6659]
[1734951533786,2.98167,3353.9,3353.0,0.6659]
[1734951533955,2.98159,3354.0,3353.0,0.6659]
[1734951534290,2.98159,3354.0,3353.0,1.64236717]
[1734951534703,2.98159,3354.0,3353.1,0.6659]
[1734951536560,0.7589,3354.1,3353.1,0.6659]
[1734951536975,2.98137,3354.2,3353.1,0.6659]
[1734951538723,2.49830936,3354.6,3353.7,0.6659]
[1734951538866,2.49830936,3354.6,3353.8,0.364771]
[1734951539071,2.49830936,3354.6,3353.9,0.6659]
[1734951539488,2.49830936,3354.7,3353.9,0.6659]
[1734951539973,5.47920936,3354.7,3353.9,0.6659]
[1734951540375,2.49830936,3354.7,3353.9,0.6659]
[1734951540576,2.98116,3354.4,3353.9,0.6659]
[1734951541608,0.7752,3354.8,3353.9,0.6659]
[1734951541919,2.981,3354.6,3353.9,0.6659]
[1734951543381,3.75603,3354.8,3353.9,0.6659]
[1734951544437,0.7752,3354.8,3353.9,0.6659]
[1734951544596,2.98108,3354.5,3353.9,0.6659]
[1734951546628,2.98123,3354.4,3353.9,0.6659]
[1734951547523,2.9811,3354.5,3353.9,0.6659]
[1734951548417,2.98141,3354.2,3353.9,0.6659]
[1734951548616,2.98154,3354.0,3353.4,0.6659]
[1734951548796,0.7847,3354.2,3353.4,0.6659]
[1734951548797,2.98142,3354.1,3353.4,0.6659]
[1734951549001,2.9817,3353.8,3353.4,1.90414697]
[1734951549329,0.7847,3354.2,3353.4,1.90414697]
[1734951549627,2.98153,3354.0,3353.4,1.90414697]
[1734951549794,0.7847,3354.2,3353.4,1.90414697]
[1734951550001,2.98172,3353.8,3353.4,0.6659]
[1734951550327,0.7847,3354.2,3353.4,0.6659]
[1734951550530,2.98176,3353.8,3353.4,0.6659]
[1734951550887,0.7847,3354.2,3353.4,0.6659]
[1734951551084,2.98186,3353.7,3353.4,0.6659]
[1734951551386,2.98193,3353.6,3353.4,0.6659]
[1734951551583,2.98161,3353.9,3353.4,0.6659]
[1734951552009,2.98178,3353.7,3353.4,0.6659]
[1734951552306,2.98195,3353.5,3353.4,0.6659]
[1734951552514,2.98186,3353.7,3353.4,0.6659]
[1734951552935,2.9816,3353.9,3353.4,0.6659]
[1734951553291,2.98172,3353.8,3353.4,0.6659]
[1734951553599,5.49830936,3354.3,3353.4,0.6659]
[1734951553799,2.9815,3354.1,3353.4,0.6659]
[1734951554324,2.49830936,3354.3,3353.4,0.6659]
[1734951554325,2.98162,3353.9,3353.4,0.6659]
[1734951555528,2.98143,3354.1,3353.5,0.6659]
[1734951555699,5.47954936,3354.4,3353.5,0.6659]
[1734951555906,2.98125,3354.3,3353.5,0.6659]
[1734951556988,3.0,3354.8,3353.5,0.6659]
[1734951557189,2.98132,3354.3,3353.5,0.6659]
[1734951557429,2.98089,3354.7,3353.6,0.6659]
[1734951557644,2.98137,3354.2,3353.6,0.6659]
[1734951558303,2.98143,3354.1,3353.6,0.6659]
[1734951560239,2.9816,3354.0,3353.6,0.6659]
[1734951560408,2.9816,3353.9,3353.6,0.6659]
[1734951560733,2.98169,3353.8,3353.6,0.6659]
[1734951561031,2.98194,3353.6,3353.4,0.6659]
[1734951563436,0.7924,3353.8,3353.1,0.6659]
[1734951563739,0.7924,3353.8,3352.8,0.6659]
[1734951564089,2.98221,3353.3,3352.8,0.6659]
[1734951564291,0.7924,3353.8,3352.8,0.6659]
[1734951564491,2.98218,3353.3,3352.8,0.6659]
[1734951564922,2.98197,3353.5,3352.8,1.04410117]
[1734951565247,2.98197,3353.5,3352.8,0.6659]
[1734951565535,5.49830936,3353.7,3352.8,0.6659]
[1734951565696,2.98193,3353.6,3352.8,0.6659]
[1734951566594,2.98198,3353.5,3352.8,0.6659]
[1734951567201,2.49830936,3354.0,3352.8,0.6659]
[1734951567543,2.98205,3353.4,3352.8,0.6659]
[1734951569545,0.7892,3353.7,3352.8,0.6659]
[1734951569546,2.98217,3353.3,3352.8,0.6659]
[1734951570102,2.9823,3353.2,3352.8,0.6659]
[1734951570412,2.98214,3353.3,3352.8,0.6659]
[1734951570799,2.98223,3353.2,3352.8,0.6659]
[1734951571497,0.7892,3353.7,3352.8,0.6659]
[1734951571701,2.98205,3353.4,3352.8,0.6659]
[1734951571898,0.7892,3353.7,3352.8,0.6659]
[1734951571899,2.98187,3353.6,3352.8,0.6659]
[1734951572099,2.98206,3353.4,3352.8,0.6659]
[1734951572500,2.98215,3353.3,3352.8,0.6659]
[1734951572703,2.98226,3353.2,3352.8,0.6659]
[1734951573340,2.98187,3353.6,3352.8,0.6659]
[1734951573548,2.98232,3353.1,3352.8,0.6659]
[1734951573707,2.98249,3352.9,3352.8,0.6659]
[1734951573905,2.98265,3352.8,3352.2,0.6659]
[1734951574105,2.98267,3352.7,3352.2,0.6659]
[1734951574917,2.98297,3352.4,3352.2,0.6659]
[1734951575116,3.0,3352.9,3352.2,0.6659]
[1734951575445,2.9824,3353.0,3352.2,0.6659]
[1734951575446,2.98286,3352.5,3352.2,0.6659]
[1734951575811,3.7519,3353.1,3352.2,0.6659]
[1734951576006,2.98296,3352.4,3351.5,0.6659]
[1734951576350,2.98296,3352.4,3351.7,0.6659]
[1734951577147,2.98301,3352.4,3351.7,0.6659]
[1734951577322,2.98309,3352.3,3351.7,0.6659]
[1734951577522,2.98274,3352.7,3351.7,0.6659]
[1734951577734,0.8173,3353.0,3351.8,0.02983461]
[1734951577934,0.8173,3353.0,3351.9,0.6659]
[1734951578524,2.98258,3352.8,3351.9,0.6659]
[1734951578835,2.9827,3352.7,3351.9,0.6659]
[1734951580140,2.98252,3352.9,3351.9,0.6659]
[1734951580349,2.98262,3352.8,3351.9,0.6659]
[1734951581259,2.98267,3352.7,3351.9,0.6659]
[1734951582764,2.98279,3352.6,3351.9,1.03249]
[1734951583053,3.79974,3353.0,3351.9,1.03249]
[1734951583054,0.8173,3353.0,3351.9,1.03249]
[1734951583287,2.98284,3352.6,3351.9,1.03249]
[1734951584661,2.98295,3352.4,3351.9,0.6659]
[1734951584848,3.80545,3352.4,3351.9,0.6659]
[1734951585050,2.98295,3352.4,3351.9,0.6659]
[1734951585223,0.8225,3352.7,3351.9,0.6659]
[1734951585426,2.98283,3352.6,3351.9,0.6659]
[1734951586054,2.98286,3352.5,3351.9,0.6659]
[1734951586453,2.98295,3352.4,3351.9,0.6659]
[1734951587082,3.8225,3352.7,3351.9,0.6659]
[1734951587299,3.8225,3352.7,3351.4,0.6659]
[1734951587300,2.98344,3351.9,3351.4,0.6659]
[1734951587476,3.8225,3352.7,3351.4,0.6659]
[1734951587477,2.98348,3351.8,3351.4,0.6659]
[1734951588563,0.8117,3352.2,3351.4,0.6659]
[1734951588944,2.98329,3352.0,3351.4,0.6659]
[1734951590480,2.98338,3351.9,3351.4,0.6659]
[1734951590684,0.8117,3352.2,3350.9,0.6659]
[1734951590883,2.98401,3351.2,3350.9,0.6659]
[1734951591089,2.9832,3352.1,3350.9,0.6659]
[1734951591090,2.98409,3351.1,3350.9,0.6659]
[1734951591248,2.98409,3351.1,3350.5,1.23824697]
[1734951591249,3.0,3351.4,3350.5,1.23824697]
[1734951591444,2.98454,3350.6,3350.5,1.23824697]
[1734951592182,2.98433,3350.9,3350.2,0.6659]
[1734951592388,2.98472,3350.4,3350.2,0.6659]
[1734951592589,0.7661,3351.1,3350.2,0.6659]
[1734951592750,2.9849,3350.2,3350.0,1.23824697]
[1734951592944,2.98452,3350.7,3350.0,1.61644814]
[1734951593197,2.98475,3350.4,3350.0,1.61644814]
[1734951593403,2.98475,3350.4,3350.0,2.28234814]
[1734951593695,2.98446,3350.7,3350.0,2.28234814]
[1734951593898,2.98446,3350.7,3350.0,1.04410117]
[1734951594047,0.7786,3350.9,3350.0,1.04410117]
[1734951594048,3.76287,3350.9,3350.0,0.6659]
[1734951594350,2.9845,3350.7,3350.0,0.6659]
[1734951596751,3.0,3351.6,3350.1,0.02984864]
[1734951596752,2.98426,3351.0,3350.1,0.02984864]
[1734951596951,2.98426,3351.0,3349.9,0.6659]
[1734951597153,0.8318,3351.5,3350.1,0.6659]
[1734951598291,0.8318,3351.5,3350.2,0.6659]
[1734951598472,2.98424,3351.0,3350.2,0.6659]
[1734951598993,2.98382,3351.4,3350.2,0.6659]
[1734951599191,2.98428,3350.9,3350.2,0.6659]
[1734951599393,2.98428,3350.9,3350.2,1.9970014]
[1734951600493,2.98428,3350.9,3350.2,0.6659]
[1734951600890,2.98411,3351.1,3350.2,0.6659]
[1734951601077,2.98394,3351.3,3350.2,0.6659]
[1734951601250,2.98373,3351.6,3350.3,9.00984328]
[1734951601457,2.98359,3351.7,3350.4,0.6659]
[1734951601771,2.98359,3351.7,3350.6,0.6659]
[1734951602280,0.8122,3352.0,3350.6,0.6659]
[1734951602482,2.98401,3351.2,3350.6,0.6659]
[1734951602896,0.7921,3352.0,3350.6,0.6659]
[1734951603096,0.7921,3351.3,3350.6,0.6659]
[1734951603316,2.98417,3351.1,3349.8,0.6659]
[1734951603481,2.98454,3350.6,3349.8,0.6659]
[1734951603796,2.98454,3350.6,3350.0,0.5937641]
[1734951604094,2.98454,3350.6,3350.1,0.6659]
[1734951604687,2.98437,3350.8,3350.1,0.6659]
[1734951605089,2.98418,3351.1,3350.1,0.6659]
[1734951605275,2.98422,3351.0,3350.1,0.6659]
[1734951605709,0.7921,3351.3,3350.1,0.6659]
[1734951605977,2.98437,3350.8,3350.1,1.03249]
[1734951606287,2.984,3351.2,3350.1,0.6659]
[1734951606490,2.98418,3351.0,3350.1,0.6659]
[1734951606686,3.0,3351.1,3350.1,0.6659]
[1734951607074,2.98465,3350.5,3350.1,0.6659]
[1734951607273,3.0,3351.1,3350.1,0.6659]
[1734951607510,2.98451,3350.7,3350.1,0.6659]
[1734951608029,2.98423,3351.0,3350.1,0.6659]
[1734951609606,2.98423,3351.0,3350.1,0.69574675]
[1734951609973,2.98391,3351.4,3350.1,0.6659]
[1734951610216,2.98411,3351.1,3350.3,0.6659]
[1734951610420,2.98395,3351.3,3350.3,0.6659]
[1734951610627,2.98377,3351.5,3350.3,3.0]
[1734951610787,0.7706,3351.8,3350.4,3.02984283]
[1734951610993,2.98356,3351.7,3350.5,0.6659]
[1734951611207,2.98356,3351.7,3350.7,0.6659]
[1734951611777,2.98338,3352.0,3350.7,0.6659]
[1734951612132,2.98338,3352.0,3350.6,0.69489309]
[1734951612133,2.98313,3352.2,3350.9,0.6659]
[1734951612779,2.98313,3352.2,3350.9,2.98425]
[1734951613078,2.98313,3352.2,3351.1,0.6659]
[1734951613280,2.98321,3352.1,3351.1,0.6659]
[1734951613936,0.59736912,3353.0,3351.0,3.298425]
[1734951613937,0.7569,3352.9,3351.2,0.02983561]
[1734951614101,2.98258,3352.8,3351.2,0.69573561]
[1734951614303,2.98297,3352.4,3351.2,0.69573561]
[1734951614653,2.98297,3352.4,3351.4,0.6659]
[1734951614850,0.7569,3352.9,3351.4,0.6659]
[1734951615149,2.98392,3351.3,3350.6,0.6659]
[1734951615444,2.98379,3351.5,3350.6,0.6659]
[1734951616504,3.0,3351.8,3350.6,0.6659]
[1734951616690,2.98359,3351.7,3350.8,0.6659]
[1734951617134,2.98372,3351.6,3350.8,0.6659]
[1734951617662,6.73774,3352.1,3350.8,0.6659]
[1734951617842,6.73774,3352.1,3350.8,0.69574052]
[1734951617843,2.98361,3351.7,3350.8,0.69574052]
[1734951618223,2.98361,3351.7,3350.8,0.6659]
[1734951618467,2.98365,3351.6,3350.8,0.6659]
[1734951619231,2.98374,3351.5,3350.8,0.6659]
[1734951619757,3.7545,3352.1,3350.8,0.6659]
[1734951619940,2.98345,3351.9,3350.8,0.6659]
[1734951620154,2.98384,3351.4,3350.8,0.6659]
[1734951620866,2.98354,3351.8,3350.8,0.6659]
[1734951621037,3.0,3351.9,3350.8,0.6659]
[1734951621211,2.98341,3351.9,3351.0,0.6659]
[1734951621411,0.8154,3352.5,3350.9,0.665038]
[1734951621713,2.98308,3352.3,3351.1,0.6659]
[1734951622537,2.98309,3352.3,3351.1,0.6659]
[1734951622715,2.98309,3352.3,3351.1,3.0]
[1734951622914,2.98309,3352.3,3351.2,0.6659]
[1734951623418,2.98317,3352.2,3351.2,0.6659]
[1734951623654,2.98334,3352.0,3351.4,0.6659]
[1734951623817,2.98356,3351.7,3351.4,0.6659]
[1734951624159,2.98366,3351.6,3351.4,0.6659]
[1734951624330,2.98373,3351.5,3351.4,0.6659]
[1734951625787,2.98329,3352.0,3351.4,0.6659]
[1734951626136,2.98373,3351.5,3350.8,0.6659]
[1734951626431,2.98421,3351.0,3350.8,0.6659]
[1734951626659,2.98427,3350.9,3350.8,0.6659]
[1734951626889,2.98448,3350.7,3350.3,0.6659]
[1734951627090,0.757,3351.6,3350.3,0.6659]
[1734951627386,2.98471,3350.4,3350.3,0.6659]
[1734951628060,3.757,3350.9,3350.3,0.6659]
[1734951628268,2.98448,3350.7,3350.3,0.6659]
[1734951628781,2.98456,3350.6,3350.3,0.6659]
[1734951628988,2.98464,3350.5,3350.3,0.6659]
[1734951630166,2.98427,3350.9,3350.3,0.6659]
[1734951630167,2.98436,3350.8,3350.3,0.6659]
[1734951630466,2.98466,3350.5,3350.3,0.6659]
[1734951630854,2.98477,3350.4,3349.8,0.6659]
[1734951631072,2.98477,3350.4,3349.8,1.63049]
[1734951631269,2.98441,3350.8,3349.8,1.63049]
[1734951631448,2.98441,3350.8,3349.8,0.6659]
[1734951631988,0.7608,3350.8,3349.8,0.6659]
[1734951632221,3.0,3350.5,3349.3,0.6659]
[1734951632495,3.0,3350.3,3349.1,1.23824697]
[1734951632702,2.98574,3349.3,3349.1,1.23824697]
[1734951632838,3.0,3350.0,3349.1,1.23824697]
[1734951633033,2.98578,3349.2,3349.1,1.23824697]
[1734951633647,0.7608,3349.5,3348.7,0.6659]
[1734951634030,2.98578,3349.2,3348.4,0.6659]
[1734951634231,2.98578,3349.2,3348.2,1.87786468]
[1734951634232,2.98633,3348.6,3348.0,1.23824697]
[1734951634549,2.98633,3348.6,3348.1,0.97751117]
[1734951635274,2.98626,3348.7,3348.1,0.97751117]
[1734951635482,2.98632,3348.6,3348.1,0.6659]
[1734951636017,3.74696,3348.8,3348.1,0.6659]
[1734951636157,0.7608,3348.8,3348.1,0.6659]
[1734951636363,2.98623,3348.7,3348.1,0.6659]
[1734951636706,0.7608,3348.8,3348.1,0.6659]
[1734951636707,2.98634,3348.6,3348.1,0.6659]
[1734951637276,2.98648,3348.5,3348.1,0.6659]
[1734951637757,0.7608,3348.8,3348.1,0.6659]
[1734951637943,2.98662,3348.3,3347.8,0.6659]
[1734951638575,2.98628,3348.7,3347.8,0.6659]
[1734951638774,2.98677,3348.1,3347.8,0.6659]
[1734951639083,3.0,3348.6,3347.8,0.6659]
[1734951639084,2.98691,3348.0,3347.8,0.6659]
[1734951639243,2.98691,3348.0,3347.0,0.6659]
[1734951639441,2.98691,3348.0,3347.1,1.27980721]
[1734951639876,2.98691,3348.0,3347.6,0.58942432]
[1734951640375,5.98637,3348.6,3347.6,0.58942432]
[1734951640577,2.98673,3348.2,3347.6,0.58942432]
[1734951640775,7.69255401,3351.4,3347.7,0.69577173]
[1734951640776,2.98607,3348.9,3347.7,0.69577173]
[1734951641095,2.98599,3349.0,3347.8,0.42724961]
[1734951641259,0.8097,3349.1,3347.9,0.6659]
[1734951641662,2.98622,3348.8,3347.9,0.6659]
[1734951642003,2.98607,3348.9,3347.9,0.6659]
[1734951642496,3.8097,3349.1,3347.9,0.6659]
[1734951642869,2.98596,3349.0,3347.9,0.6659]
[1734951643048,2.9863,3348.7,3347.9,0.6659]
[1734951643377,2.98633,3348.6,3347.9,0.6659]
[1734951645405,2.98616,3348.8,3347.9,0.6659]
[1734951645590,3.79565,3349.1,3347.9,0.6659]
[1734951645938,3.79565,3349.1,3348.0,0.365294]
[1734951646284,3.79565,3349.1,3347.9,0.6659]
[1734951646683,0.7774,3350.0,3348.3,0.6659]
[1734951646889,0.7774,3350.0,3348.5,0.6659]
[1734951647427,2.98516,3349.9,3348.5,1.26571934]
[1734951647642,0.7774,3350.0,3348.5,1.26571934]
[1734951647803,2.98577,3349.3,3348.5,1.26571934]
[1734951648156,0.7774,3349.4,3348.5,1.26571934]
[1734951648726,0.7774,3349.4,3348.6,0.42522693]
[1734951649062,0.7774,3349.4,3348.5,1.26571934]
[1734951651011,2.98509,3350.0,3348.7,0.6659]
[1734951651242,3.7774,3350.1,3348.9,0.6659]
[1734951651423,2.98491,3350.2,3349.0,0.6659]
[1734951651726,2.98491,3350.2,3349.1,0.6659]
[1734951651922,2.98491,3350.2,3349.2,0.365185]
[1734951652232,2.98473,3350.4,3349.3,0.6659]
[1734951652425,2.98473,3350.4,3349.3,0.69575507]
[1734951652631,2.98473,3350.4,3349.3,0.6659]
[1734951652930,0.7594,3350.7,3349.3,0.6659]
[1734951653127,2.98466,3350.5,3349.3,0.6659]
[1734951653316,3.74392,3350.7,3349.4,0.4016845]
[1734951653510,3.74392,3350.7,3349.5,0.6659]
[1734951653837,2.98434,3350.9,3349.5,3.65141]
[1734951654012,3.0,3350.8,3349.5,3.65141]
[1734951654207,3.0,3350.8,3349.4,0.4016845]
[1734951654208,2.98431,3350.9,3349.7,0.6659]
[1734951654412,0.7656,3351.0,3349.7,0.6659]
[1734951655161,3.7656,3351.0,3349.7,0.6659]
[1734951655516,2.98463,3350.5,3349.7,0.6659]
[1734951656231,6.74985,3351.0,3349.7,0.6659]
[1734951656484,3.0,3351.3,3349.9,0.6659]
[1734951656642,0.8134,3351.3,3350.1,0.6659]
[1734951656843,3.79736,3351.3,3350.3,0.6659]
[1734951657047,0.8134,3351.6,3350.3,0.6659]
[1734951657251,3.79686,3351.9,3350.4,3.0144739]
[1734951657447,3.79686,3351.9,3350.5,0.6659]
[1734951657448,2.98354,3351.8,3350.5,0.6659]
[1734951657652,2.98354,3351.8,3350.6,0.6659]
[1734951657833,2.98354,3351.8,3350.7,0.365051]
[1734951658143,2.98354,3351.8,3350.6,0.6659]
[1734951658351,0.8134,3351.9,3350.6,0.6659]
[1734951658548,0.8134,3351.9,3350.6,1.26263112]
[1734951658762,2.9839,3351.4,3350.6,1.26263112]
[1734951660112,2.9837,3351.6,3350.6,1.26263112]
[1734951660277,3.8134,3351.9,3350.6,2.28689423]
[1734951660481,0.8134,3351.9,3350.6,2.28689423]
[1734951660797,2.98367,3351.6,3350.6,2.28689423]
[1734951661097,2.98349,3351.8,3350.6,2.28689423]
[1734951661397,2.98356,3351.7,3350.6,2.28689423]
[1734951661595,2.98356,3351.7,3350.7,0.52715742]
[1734951661951,2.98356,3351.7,3350.8,0.6659]
[1734951662290,0.8134,3351.9,3350.8,0.6659]
[1734951662472,2.98367,3351.6,3350.8,0.6659]
[1734951663385,3.8134,3351.9,3350.8,0.6659]
[1734951663704,2.98384,3351.4,3350.8,0.6659]
[1734951665283,2.98391,3351.3,3350.8,0.6659]
[1734951665479,2.98365,3351.6,3350.8,0.6659]
[1734951665666,3.0,3351.3,3350.8,0.6659]
[1734951666002,3.0,3351.3,3350.4,0.6659]
[1734951666003,2.98436,3350.8,3350.4,0.6659]
[1734951666298,2.98417,3351.1,3350.4,0.6659]
[1734951667102,0.805,3351.2,3350.4,0.6659]
[1734951667305,3.0,3351.2,3350.4,0.6659]
[1734951667604,3.0,3351.4,3350.4,0.6659]
[1734951667792,0.7538,3351.5,3350.4,0.6659]
[1734951667997,3.0,3351.2,3350.4,0.6659]